fUST/lending_fUST_20260324
["ID","MTS","AMOUNT","RATE_DAILY","PERIOD"]
[408864993,1774350643753,-369.67026677,0.00013699,2]
[408864994,1774350643762,-353.34224651,0.0001392,2]
[408864995,1774350643773,-439.0,0.00014147,2]
[408864996,1774350643782,-1000.0,0.00014221,2]
[408864997,1774350643792,-500.0,0.00014424,2]
[408864998,1774350643801,-500.0,0.00014424,2]
[408864999,1774350643810,-2566.8848594,0.00014425,2]
[408865000,1774350643819,-403.81971029,0.00014487,2]
[408865001,1774350643828,-1788.39691158,0.000145,2]
[408865002,1774350643837,-998.91112206,0.000146,2]
[408865004,1774350644141,-1857.97640294,0.000146,2]
[408865005,1774350644152,-2741.61344607,0.000146,2]
[408865006,1774350644164,-115.27407893,0.000146,2]
[408865007,1774350644173,-2394.07239904,0.000146,2]
[408865014,1774350645711,-462.81512596,0.000146,2]
[408865015,1774350645722,-2856.887525,0.000146,2]
[408865016,1774350645731,-151.0,0.000147,2]
[408865017,1774350645740,-151.268153,0.000147,2]
[408865018,1774350645750,-854.35704894,0.000147,2]
[408865019,1774350645922,-2002.53047606,0.000147,2]
[408865020,1774350645936,-2856.887525,0.000147,2]
[408865021,1774350645946,-2856.887525,0.000147,2]
[408865023,1774350645955,-2856.887525,0.000147,2]
[408865025,1774350645965,-500.0,0.00014773,2]
[408865026,1774350645975,-500.0,0.00014773,2]
[408865027,1774350645984,-500.0,0.00014773,2]
[408865028,1774350645993,-500.0,0.00014784,2]
[408865030,1774350646002,-264.64866629,0.00014784,2]
[408865032,1774350646014,-500.0,0.00014784,2]
[408865034,1774350646023,-417.25989752,0.00014784,2]
[408865035,1774350646032,-2856.887525,0.00014785,2]
[408865036,1774350646041,-2856.887525,0.00014785,2]
[408865037,1774350646051,-2856.887525,0.00014785,2]
[408865038,1774350646060,-2856.887525,0.00014785,2]
[408865039,1774350646069,-2856.887525,0.00014785,2]
[408865040,1774350646078,-2856.887525,0.00014785,2]
[408865041,1774350646088,-2856.887525,0.00014785,2]
[408865042,1774350646098,-2856.887525,0.00014785,2]
[408865043,1774350646106,-2128.62955945,0.00014785,2]
[408865044,1774350646118,-1191.17477552,0.00014785,2]
[408865045,1774350646128,-500.0,0.00014785,2]
[408865046,1774350646138,-568.3962408,0.00014785,2]
[408865047,1774350646148,-500.0,0.00014785,2]
[408865048,1774350646157,-500.0,0.00014785,2]
[408865049,1774350646167,-500.0,0.00014785,2]
[408865050,1774350646175,-500.0,0.00014785,2]
[408865051,1774350646185,-500.0,0.00014785,2]
[408865052,1774350646194,-500.0,0.00014785,2]
[408865053,1774350646203,-385.76940592,0.00014785,2]
[408865054,1774350646212,-500.0,0.00014785,2]
[408865055,1774350646221,-500.0,0.00014785,2]
[408865056,1774350646231,-500.0,0.00014785,2]
[408865057,1774350646240,-500.0,0.00014785,2]
[408865058,1774350646250,-500.0,0.00014785,2]
[408865059,1774350646259,-500.0,0.00014785,2]
[408865060,1774350646269,-500.0,0.00014785,2]
[408865061,1774350646278,-500.0,0.00014785,2]
[408865062,1774350646288,-500.0,0.00014785,2]
[408865063,1774350646297,-500.0,0.00014785,2]
[408865064,1774350646307,-500.0,0.00014785,2]
[408865065,1774350646316,-500.0,0.00014785,2]
[408865066,1774350646326,-162.72310922,0.00014785,2]
[408865067,1774350646337,-337.27689078,0.00014785,2]
[408865068,1774350646347,-2856.887525,0.00014786,2]
[408865069,1774350646357,-2856.887525,0.00014786,2]
[408865070,1774350646367,-2856.887525,0.00014786,2]
[408865071,1774350646377,-2856.887522,0.00014786,2]
[408865072,1774350646386,-2422.52871222,0.00014786,2]
[408865143,1774351831712,-900.0,0.00013159,2]
[408865145,1774351831721,-521.2607696,0.00013292,2]
[408865147,1774351831735,-87.7392304,0.00013292,2]
[408865150,1774351831747,-591.71440258,0.0001357,2]
[408865152,1774351831758,-3277.64252652,0.0001357,2]
[408865154,1774351831767,-1000.0,0.00013699,2]
[408865156,1774351831777,-1000.0,0.00013699,2]
[408865159,1774351831786,-1416.97138902,0.00014499,2]
[408865209,1774351838092,-147.87590863,0.00014499,2]
[408865210,1774351838101,-358.55752736,0.000145,2]
[408865211,1774351838112,-401.81884896,0.000145,2]
[408865212,1774351838122,-386.71351202,0.000145,2]
[408865213,1774351838131,-227.32126315,0.000145,2]
[408865214,1774351838143,-1.42410328,0.000145,2]
[408865215,1774351838153,-151.0,0.00014593,2]
[408865216,1774351838163,-151.0,0.00014593,2]
[408865217,1774351838173,-151.0,0.00014593,2]
[408865218,1774351838183,-151.0,0.00014593,2]
[408865219,1774351838192,-173.322302,0.00014593,2]
[408865220,1774351838201,-169.4968928,0.00014594,2]
[408865221,1774351838213,-27.9521482,0.00014594,2]
[408865222,1774351838224,-197.449041,0.00014594,2]
[408865223,1774351838234,-197.449041,0.00014594,2]
[408865224,1774351838247,-197.449041,0.00014594,2]
[408865225,1774351838257,-197.449041,0.00014594,2]
[408865226,1774351838266,-197.449041,0.00014594,2]
[408865227,1774351838275,-197.449041,0.00014594,2]
[408865228,1774351838286,-197.449041,0.00014594,2]
[408865229,1774351838295,-197.449041,0.00014594,2]
[408865230,1774351838304,-197.449041,0.00014594,2]
[408865231,1774351838314,-197.449041,0.00014594,2]
[408865232,1774351838323,-197.449041,0.00014594,2]
[408865233,1774351838333,-197.449041,0.00014594,2]
[408865234,1774351838342,-197.449041,0.00014594,2]
[408865235,1774351838351,-197.449041,0.00014594,2]
[408865236,1774351838361,-197.449041,0.00014594,2]
[408865237,1774351838371,-197.449041,0.00014594,2]
[408865238,1774351838382,-197.449041,0.00014594,2]
[408865239,1774351838392,-197.449041,0.00014594,2]
[408865240,1774351838401,-197.44904688,0.00014594,2]
[408865241,1774351838411,-151.0,0.00014595,2]
[408865242,1774351838421,-151.0,0.00014595,2]
[408865243,1774351838432,-151.0,0.00014595,2]
[408865244,1774351838442,-151.0,0.00014595,2]
[408865245,1774351838452,-151.0,0.00014595,2]
[408865246,1774351838462,-151.0,0.00014595,2]
[408865247,1774351838472,-151.0,0.00014595,2]
[408865248,1774351838482,-151.0,0.00014595,2]
[408865249,1774351838492,-288.309321,0.00014595,2]
[408865250,1774351838502,-943.5,0.00014595,2]
[408865251,1774351838512,-943.5,0.00014595,2]
[408865252,1774351838521,-943.5,0.00014595,2]
[408865253,1774351838530,-943.5,0.00014595,2]
[408865254,1774351838540,-158.373,0.00014597,2]
[408865255,1774351838549,-151.0,0.00014597,2]
[408865256,1774351838558,-151.0,0.00014597,2]
[408865257,1774351838567,-190.505501,0.00014597,2]
[408865258,1774351838576,-500.0,0.00014598,2]
[408865259,1774351838585,-500.0,0.00014598,2]
[408865260,1774351838595,-500.0,0.00014598,2]
[408865261,1774351838605,-500.0,0.00014598,2]
[408865262,1774351838614,-943.5,0.00014598,2]
[408865263,1774351838625,-500.0,0.00014599,2]
[408865264,1774351838634,-500.0,0.00014599,2]
[408865265,1774351838644,-500.0,0.00014599,2]
[408865266,1774351838653,-500.0,0.00014599,2]
[408865267,1774351838663,-311.38444049,0.00014599,2]
[408865268,1774351838674,-500.0,0.00014599,2]
[408865269,1774351838684,-500.0,0.00014599,2]
[408865270,1774351838693,-500.0,0.00014599,2]
[408865271,1774351838703,-500.0,0.00014599,2]
[408865272,1774351838712,-500.0,0.00014599,2]
[408865273,1774351838722,-500.0,0.00014599,2]
[408865274,1774351838732,-943.5,0.00014769,2]
[408865275,1774351838741,-943.5,0.00014769,2]
[408865276,1774351838751,-943.5,0.00014769,2]
[408865277,1774351838760,-166.58251752,0.00014769,2]
[408865278,1774351838769,-500.0,0.00014769,2]
[408865279,1774351838779,-773.63352293,0.00014769,2]
[408865280,1774351838788,-773.63352293,0.00014769,2]
[408865281,1774351838798,-773.63352293,0.00014769,2]
[408865282,1774351838807,-773.63352293,0.00014769,2]
[408865283,1774351838817,-773.63352293,0.00014769,2]
[408865284,1774351838827,-773.63352293,0.00014769,2]
[408865285,1774351838836,-773.63352293,0.00014769,2]
[408865286,1774351838846,-773.63352293,0.00014769,2]
[408865287,1774351838855,-773.63352293,0.00014769,2]
[408865288,1774351838865,-773.63352293,0.00014769,2]
[408865289,1774351838874,-773.63352293,0.00014769,2]
[408865290,1774351838884,-773.63352293,0.00014769,2]
[408865291,1774351838893,-773.63352293,0.00014769,2]
[408865292,1774351838903,-773.63352293,0.00014769,2]
[408865293,1774351838912,-773.63352293,0.00014769,2]
[408865294,1774351838922,-773.63352293,0.00014769,2]
[408865295,1774351838931,-773.63352293,0.00014769,2]
[408865296,1774351838941,-773.63352293,0.00014769,2]
[408865297,1774351838950,-773.63352293,0.00014769,2]
[408865298,1774351838960,-773.63352293,0.00014769,2]
[408865299,1774351838969,-773.63352293,0.00014769,2]
[408865300,1774351838978,-773.63352293,0.00014769,2]
[408865301,1774351838989,-773.63352293,0.00014769,2]
[408865302,1774351838999,-773.63352293,0.00014769,2]
[408865303,1774351839010,-773.63352293,0.00014769,2]
[408865304,1774351839020,-773.63352293,0.00014769,2]
[408865305,1774351839029,-773.63352293,0.00014769,2]
[408865306,1774351839038,-773.63352293,0.00014769,2]
[408865307,1774351839047,-773.63352293,0.00014769,2]
[408865308,1774351839057,-773.63352293,0.00014769,2]
[408865309,1774351839067,-773.63352293,0.00014769,2]
[408865310,1774351839076,-773.63352293,0.00014769,2]
[408865311,1774351839085,-773.63352293,0.00014769,2]
[408865312,1774351839095,-773.63352293,0.00014769,2]
[408865313,1774351839104,-773.63352293,0.00014769,2]
[408865314,1774351839114,-773.63352293,0.00014769,2]
[408865315,1774351839123,-773.63352293,0.00014769,2]
[408865316,1774351839132,-773.63352293,0.00014769,2]
[408865317,1774351839141,-773.63352293,0.00014769,2]
[408865318,1774351839151,-773.63352293,0.00014769,2]
[408865319,1774351839160,-773.63352293,0.00014769,2]
[408865320,1774351839171,-773.63352293,0.00014769,2]
[408865321,1774351839181,-773.63352293,0.00014769,2]
[408865322,1774351839190,-773.63352293,0.00014769,2]
[408865323,1774351839199,-773.63352293,0.00014769,2]
[408865324,1774351839208,-773.63352293,0.00014769,2]
[408865325,1774351839217,-773.63352293,0.00014769,2]
[408865326,1774351839227,-773.63352293,0.00014769,2]
[408865327,1774351839236,-773.63352293,0.00014769,2]
[408865328,1774351839251,-773.63352293,0.00014769,2]
[408865329,1774351839260,-773.63352293,0.00014769,2]
[408865330,1774351839271,-773.63352293,0.00014769,2]
[408865331,1774351839280,-773.63352293,0.00014769,2]
[408865332,1774351839291,-773.63352293,0.00014769,2]
[408865333,1774351839300,-773.63352293,0.00014769,2]
[408865334,1774351839311,-773.63352293,0.00014769,2]
[408865335,1774351839320,-42204.092053,0.0001477,2]
[408865336,1774351839330,-3608.746369,0.0001477,2]
[408865337,1774351839339,-11518.2238352,0.0001477,2]
[408865338,1774351839349,-249.8510471,0.0001477,2]
[408865339,1774351839359,-943.5,0.00014784,2]
[408865340,1774351839368,-500.0,0.00014786,2]
[408865341,1774351839377,-823.233906,0.00014945,2]
[408865342,1774351839387,-943.5,0.00014968,2]
[408865343,1774351839396,-537.6845,0.00014969,2]
[408865344,1774351839405,-537.6845,0.00014969,2]
[408865345,1774351839415,-2150.738,0.00014969,2]
[408865346,1774351839424,-1763.5141644,0.00015,2]
[408865347,1774351839434,-299.12079453,0.00015,2]
[408865348,1774351839443,-641.0,0.00015023,2]
[408865349,1774351839452,-2193.0,0.00015023,2]
[408865350,1774351839463,-1399.0,0.00015023,2]
[408865351,1774351839472,-439.0,0.00015023,2]
[408865352,1774351839482,-735.0,0.00015023,2]
[408865353,1774351839493,-184.0,0.00015023,2]
[408865354,1774351839502,-557.5788265,0.00015024,2]
[408865355,1774351839513,-364.34849,0.00015068,2]
[408865356,1774351839523,-578.20924308,0.00015079,2]
[408865357,1774351839532,-150.449,0.00015081,2]
[408865358,1774351839542,-286.792,0.00015081,2]
[408865359,1774351839551,-599.60298507,0.00015134,2]
[408865360,1774351839561,-621.78829552,0.00015189,2]
[408865361,1774351839571,-644.79446246,0.00015244,2]
[408865362,1774351839581,-668.65185757,0.00015299,2]
[408865363,1774351839590,-197.11241609,0.00015321,2]
[408865364,1774351839599,-693.3919763,0.00015354,2]
[408865365,1774351839608,-555.5059793,0.000154,2]
[408865371,1774351840308,-1.4940207,0.000154,2]
[408865372,1774351840319,-719.04747942,0.00015409,2]
[408865373,1774351840329,-745.65223616,0.00015464,2]
[408865374,1774351840338,-557.5788265,0.00015517,2]
[408865375,1774351840347,-2230.315306,0.00015517,2]
[408865376,1774351840357,-773.2413689,0.00015519,2]
[408865377,1774351840366,-943.5,0.00015573,2]
[408865378,1774351840376,-453.11753973,0.00015574,2]
[408865379,1774351840387,-348.73375982,0.00015574,2]
[408865380,1774351840396,-823.233906,0.00015575,2]
[408865381,1774351840405,-831.51979763,0.00015629,2]
[408865382,1774351840414,-1921.47335705,0.0001564,2]
[408865383,1774351840425,-671.77936835,0.0001564,2]
[408865384,1774351840436,-930.57481231,0.0001564,2]
[408865394,1774351843168,-1476.17246229,0.0001564,2]
[408865395,1774351843177,-87.65852388,0.00015672,2]
[408865445,1774351846050,-67.58197447,0.00015672,2]
[408865446,1774351846059,-166.0,0.00015672,2]
[408865447,1774351846069,-153.58848285,0.00015672,2]
[408865448,1774351846078,-690.0,0.00015672,2]
[408865449,1774351846087,-166.0,0.00015672,2]
[408865450,1774351846096,-243.2921679,0.00015672,2]
[408865451,1774351846111,-290.53780898,0.00015672,2]
[408865452,1774351846120,-230.66882126,0.00015672,2]
[408865453,1774351846130,-339.0,0.00015672,2]
[408865455,1774351846139,-339.0,0.00015672,2]
[408865456,1774351846148,-172.07517013,0.00015672,2]
[408865458,1774351846157,-862.28603014,0.00015684,2]
[408865460,1774351846166,-501.57269653,0.00015723,2]
[408865462,1774351846176,-500.0,0.00015723,2]
[408865464,1774351846185,-217.56033778,0.00016,2]
[408865466,1774351846194,-500.0,0.00016,2]
[408865468,1774351846203,-578.20924308,0.00016065,2]
[408865470,1774351846211,-2312.83697232,0.00016065,2]
[408865472,1774351846220,-943.5,0.00016171,2]
[408865474,1774351846229,-2000.7650319,0.00016172,2]
[408865476,1774351846238,-823.233906,0.00016204,2]
[408865478,1774351846251,-502.83678352,0.00016271,2]
[408865480,1774351846260,-500.0,0.00016273,2]
[408865482,1774351846269,-582.68742598,0.00016273,2]
[408865484,1774351846277,-501.55993991,0.00016273,2]
[408865486,1774351846288,-648.75394514,0.00016273,2]
[408865488,1774351846297,-500.79642778,0.00016273,2]
[408865490,1774351846306,-500.0,0.00016273,2]
[408865492,1774351846314,-500.0,0.00016273,2]
[408865494,1774351846324,-212.70961434,0.00016273,2]
[408865496,1774351846333,-943.5,0.00016273,2]
[408865498,1774351846343,-943.5,0.00016273,2]
[408865500,1774351846353,-943.5,0.00016273,2]
[408865502,1774351846361,-943.5,0.00016273,2]
[408865503,1774351846370,-943.5,0.00016273,2]
[408865505,1774351846380,-943.5,0.00016273,2]
[408865507,1774351846389,-943.5,0.00016273,2]
[408865508,1774351846398,-943.5,0.00016273,2]
[408865510,1774351846407,-943.5,0.00016273,2]
[408865511,1774351846416,-943.5,0.00016273,2]
[408865512,1774351846425,-943.5,0.00016273,2]
[408865513,1774351846435,-943.6011672,0.00016273,2]
[408865514,1774351846445,-500.0,0.00016273,2]
[408865515,1774351846454,-232.16118997,0.00016273,2]
[408865516,1774351846464,-118123.75564994,0.00016274,2]
[408865551,1774353031826,-803.06333789,0.00012389,2]
[408865554,1774353031837,-73.7999285,0.00012389,2]
[408865642,1774353038074,-521.2000715,0.00012389,2]
[408865643,1774353038084,-4248.22,0.00012514,2]
[408865644,1774353038093,-1000.0,0.00013699,2]
[408865645,1774353038103,-175.41948914,0.00013837,4]
[408865646,1774353038112,-163.68868303,0.000145,2]
[408865647,1774353038123,-193.83973109,0.000145,2]
[408865648,1774353038132,-186.47443388,0.000145,2]
[408865649,1774353038142,-191.37808487,0.000145,2]
[408865650,1774353038152,-537.6845,0.00015015,2]
[408865651,1774353038161,-2150.738,0.00015015,2]
[408865652,1774353038171,-214.04931252,0.0001507,2]
[408865653,1774353038180,-641.0,0.00015398,2]
[408865654,1774353038189,-2193.0,0.00015398,2]
[408865655,1774353038198,-2230.315306,0.00015563,2]
[408865656,1774353038207,-168.6628212,0.00016,2]
[408865657,1774353038216,-3573.53225528,0.00016072,2]
[408865658,1774353038225,-1369.2413854,0.00016072,2]
[408865659,1774353038234,-2312.83697232,0.00016111,2]
[408865660,1774353038243,-500.0,0.00016132,2]
[408865661,1774353038253,-3616.14437404,0.00016171,2]
[408865662,1774353038265,-1383.85562596,0.00016171,2]
[408865663,1774353038275,-136.23312403,0.00016172,2]
[408865664,1774353038286,-5056.49508421,0.00016172,2]
[408865665,1774353038297,-2849.8060003,0.00016172,2]
[408865666,1774353038308,-130556.16064673,0.00016172,2]
[408865673,1774353040482,-8984.81521498,0.00016172,2]
[408865697,1774353043199,-0.00207617,0.00016172,2]
[408865700,1774353043218,-695.7,0.00016172,2]
[408865762,1774353046261,-2252.49152742,0.00015949,2]
[408865763,1774353046271,-930.57481231,0.00016171,2]
[408865764,1774353046281,-17363.6838999,0.00016172,2]
[408865861,1774354232626,-5000.0,0.00013292,2]
[408865863,1774354232636,-609.0,0.00013292,2]
[408865865,1774354232644,-1000.0,0.00013699,2]
[408865867,1774354232654,-287.0,0.00013831,2]
[408865869,1774354232664,-300.0,0.00013832,2]
[408865871,1774354232674,-56.80009632,0.00013832,2]
[408865873,1774354232686,-243.19990368,0.00013832,2]
[408865875,1774354232696,-236.25073752,0.00013832,2]
[408865964,1774354238124,-63.74926248,0.00013832,2]
[408865965,1774354238133,-300.0,0.00013832,2]
[408865966,1774354238142,-300.0,0.00013832,2]
[408865967,1774354238152,-300.0,0.00013832,2]
[408865968,1774354238162,-300.0,0.00013832,2]
[408865969,1774354238171,-300.0,0.00013832,2]
[408865970,1774354238181,-300.0,0.00013832,2]
[408865971,1774354238190,-300.0,0.00013832,2]
[408865972,1774354238199,-300.0,0.00013832,2]
[408865973,1774354238208,-300.0,0.00013832,2]
[408865974,1774354238218,-300.0,0.00013832,2]
[408865975,1774354238227,-300.0,0.00013832,2]
[408865976,1774354238237,-300.0,0.00013832,2]
[408865977,1774354238247,-1000.0,0.00014168,2]
[408865978,1774354238256,-291.478792,0.00015139,2]
[408865979,1774354238265,-841.79693268,0.00015398,2]
[408865980,1774354238278,-1351.20306732,0.00015398,2]
[408865981,1774354238287,-735.0,0.00015398,2]
[408865982,1774354238297,-184.0,0.00015398,2]
[408865983,1774354238309,-439.0,0.00015398,2]
[408865984,1774354238326,-308.5,0.00015713,2]
[408865985,1774354238348,-500.0,0.0001577,2]
[408865986,1774354238358,-215.99004198,0.0001577,2]
[408865987,1774354238367,-500.0,0.0001577,2]
[408865988,1774354238376,-500.0,0.0001577,2]
[408865989,1774354238386,-152.48770567,0.0001577,2]
[408865990,1774354238396,-500.0,0.0001577,2]
[408865991,1774354238406,-500.0,0.0001577,2]
[408865992,1774354238415,-500.0,0.0001577,2]
[408865993,1774354238424,-500.0,0.0001577,2]
[408865994,1774354238433,-500.0,0.0001577,2]
[408865995,1774354238443,-500.0,0.0001577,2]
[408865996,1774354238452,-500.0,0.0001577,2]
[408865997,1774354238461,-508.46637778,0.0001577,2]
[408865998,1774354238471,-395.99079976,0.0001577,2]
[408865999,1774354238480,-500.0,0.0001577,2]
[408866000,1774354238489,-500.0,0.0001577,2]
[408866001,1774354238499,-500.0,0.0001577,2]
[408866002,1774354238509,-500.0,0.0001577,2]
[408866003,1774354238518,-500.0,0.0001577,2]
[408866004,1774354238528,-500.0,0.0001577,2]
[408866005,1774354238537,-528.43345547,0.0001577,2]
[408866006,1774354238546,-500.0,0.0001577,2]
[408866007,1774354238555,-500.0,0.0001577,2]
[408866008,1774354238564,-500.0,0.0001577,2]
[408866009,1774354238573,-500.0,0.0001577,2]
[408866010,1774354238582,-500.0,0.0001577,2]
[408866011,1774354238591,-500.0,0.0001577,2]
[408866012,1774354238602,-500.0,0.0001577,2]
[408866013,1774354238610,-500.0,0.0001577,2]
[408866014,1774354238619,-500.0,0.0001577,2]
[408866015,1774354238628,-500.0,0.0001577,2]
[408866016,1774354238638,-500.0,0.0001577,2]
[408866017,1774354238647,-500.0,0.0001577,2]
[408866018,1774354238656,-500.0,0.0001577,2]
[408866019,1774354238665,-500.0,0.0001577,2]
[408866020,1774354238675,-500.0,0.0001577,2]
[408866021,1774354238684,-500.0,0.0001577,2]
[408866022,1774354238694,-500.0,0.0001577,2]
[408866023,1774354238703,-500.0,0.0001577,2]
[408866024,1774354238713,-500.0,0.0001577,2]
[408866025,1774354238722,-500.0,0.0001577,2]
[408866026,1774354238732,-500.0,0.0001577,2]
[408866027,1774354238741,-500.0,0.0001577,2]
[408866028,1774354238751,-500.0,0.0001577,2]
[408866029,1774354238760,-500.0,0.0001577,2]
[408866030,1774354238770,-500.0,0.0001577,2]
[408866031,1774354238780,-500.0,0.0001577,2]
[408866032,1774354238789,-500.0,0.0001577,2]
[408866033,1774354238798,-500.0,0.0001577,2]
[408866034,1774354238807,-500.0,0.0001577,2]
[408866035,1774354238817,-500.0,0.0001577,2]
[408866036,1774354238826,-500.0,0.0001577,2]
[408866037,1774354238835,-500.0,0.0001577,2]
[408866038,1774354238844,-500.0,0.0001577,2]
[408866039,1774354238853,-500.0,0.0001577,2]
[408866040,1774354238863,-500.0,0.0001577,2]
[408866041,1774354238874,-500.0,0.0001577,2]
[408866042,1774354238884,-500.0,0.0001577,2]
[408866043,1774354238893,-500.0,0.0001577,2]
[408866044,1774354238907,-500.0,0.0001577,2]
[408866045,1774354238916,-500.0,0.0001577,2]
[408866046,1774354238925,-500.0,0.0001577,2]
[408866047,1774354238935,-500.0,0.0001577,2]
[408866048,1774354238947,-500.0,0.0001577,2]
[408866049,1774354238956,-500.0,0.0001577,2]
[408866050,1774354238966,-500.0,0.0001577,2]
[408866051,1774354238979,-500.0,0.0001577,2]
[408866052,1774354238989,-628.55265376,0.0001577,2]
[408866053,1774354239000,-500.0,0.0001577,2]
[408866054,1774354239009,-500.0,0.0001577,2]
[408866055,1774354239019,-500.0,0.0001577,2]
[408866056,1774354239029,-500.0,0.0001577,2]
[408866057,1774354239038,-500.0,0.0001577,2]
[408866058,1774354239047,-73909.20823081,0.00015771,2]
[408866059,1774354239060,-7621.28880206,0.00015771,2]
[408866067,1774354240559,-2583.11443135,0.00015771,2]
[408866068,1774354240571,-7909.01872154,0.00015771,2]
[408866069,1774354240582,-523.75236559,0.00015771,2]
[408866070,1774354240593,-5419.85572465,0.00015771,2]
[408866071,1774354240604,-1258.43671265,0.00015771,2]
[408866091,1774354243272,-1198.08621226,0.00015673,2]
[408866093,1774354243282,-15127.03845859,0.00015771,2]
[408866098,1774354243328,-813.5,0.00015771,2]
[408866100,1774354243339,-285.0,0.00015771,2]
[408866103,1774354243350,-4173.59689707,0.00015771,2]
[408866116,1774354246288,-11884.971555,0.00015771,2]
[408866117,1774354246343,-8252.81907666,0.00015771,2]
[408866275,1774355438435,-175.046947,6.933e-05,2]
[408866276,1774355438445,-518.0,6.933e-05,2]
[408866277,1774355438455,-5000.0,0.00012514,2]
[408866278,1774355438464,-300.0,0.00013694,2]
[408866279,1774355438474,-300.0,0.00013694,2]
[408866280,1774355438484,-300.0,0.00013694,2]
[408866281,1774355438494,-300.0,0.00013694,2]
[408866282,1774355438504,-300.0,0.00013694,2]
[408866283,1774355438514,-300.0,0.00013694,2]
[408866284,1774355438524,-48.02479102,0.00013694,2]
[408866294,1774355443728,-350.68713625,6.864e-05,2]
[408866295,1774355443739,-644.0,6.864e-05,2]
[408866301,1774355446575,-1206.96322481,6.864e-05,2]
[408866302,1774355446585,-251.97520898,0.00013694,2]
[408866303,1774355446595,-300.0,0.00013694,2]
[408866304,1774355446605,-300.0,0.00013694,2]
[408866305,1774355446614,-300.0,0.00013694,2]
[408866306,1774355446623,-300.0,0.00013694,2]
[408866307,1774355446633,-300.0,0.00013694,2]
[408866308,1774355446642,-300.0,0.00013694,2]
[408866309,1774355446653,-300.0,0.00013694,2]
[408866310,1774355446662,-300.0,0.00013694,2]
[408866311,1774355446673,-1000.0,0.00013699,2]
[408866312,1774355446682,-175.046947,0.00013866,2]
[408866313,1774355446692,-498.93902903,0.00015157,2]
[408866314,1774355446704,-348.01294213,0.00015157,2]
[408866316,1774355532847,258.20453796,0.00012999,120]
[408866337,1774356632527,-1323.87392807,0.00012222,2]
[408866339,1774356632539,-1703.41334734,0.00012222,2]
[408866435,1774356638504,-1972.71272459,0.00012222,2]
[408866437,1774356638513,-594.0,0.00012345,2]
[408866439,1774356638523,-212.1593138,0.00012345,2]
[408866441,1774356638532,-1000.0,0.00013699,2]
[408866443,1774356638541,-233.183033,0.00015068,2]
[408866445,1774356638550,-300.0,0.0001507,2]
[408866447,1774356638559,-3336.15954078,0.00015071,2]
[408866449,1774356638568,-1048.32543571,0.00015071,2]
[408866451,1774356638581,-146.75371352,0.0001517,2]
[408866453,1774356638593,-354.43931586,0.0001517,2]
[408866455,1774356638602,-500.0,0.0001517,2]
[408866457,1774356638612,-500.0,0.0001517,2]
[408866459,1774356638621,-500.0,0.0001517,2]
[408866461,1774356638630,-500.0,0.0001517,2]
[408866463,1774356638639,-500.0,0.0001517,2]
[408866465,1774356638650,-500.0,0.0001517,2]
[408866467,1774356638659,-500.0,0.0001517,2]
[408866469,1774356638668,-500.0,0.0001517,2]
[408866471,1774356638677,-500.0,0.0001517,2]
[408866473,1774356638687,-500.0,0.0001517,2]
[408866475,1774356638696,-500.0,0.0001517,2]
[408866477,1774356638705,-500.0,0.0001517,2]
[408866479,1774356638714,-500.0,0.0001517,2]
[408866481,1774356638723,-500.0,0.0001517,2]
[408866483,1774356638731,-500.0,0.0001517,2]
[408866485,1774356638740,-500.0,0.0001517,2]
[408866486,1774356638749,-558.71482839,0.0001517,2]
[408866488,1774356638759,-500.0,0.0001517,2]